[Event "8th RTU Open 2018"]
[Site "Riga"]
[Date "2018.08.11"]
[Round "8"]
[White "Duzhakov, Ilya"]
[Black "Quillan, Gary"]
[Result "0-1"]
[ECO "A61"]
[WhiteElo "2441"]
[BlackElo "2349"]
[Annotator "NA"]
[PlyCount "80"]
[EventDate "2018.08.06"]
[EventType "swiss"]
[EventCountry "LAT"]
[SourceTitle "playchess.com"]
[Source "ChessBase"]
[SourceQuality "1"]
[TimeControl "5400+30"]

1. d4 {[%emt 0:01:21]} e6 {[%emt 0:00:00]} 2. c4 {[%emt 0:00:25]} Nf6 {[%emt 0:00:00]} 3. Nf3 {[%emt 0:00:13]} c5 {[%emt 0:00:05]} 4. d5 {[%emt 0:00:09]} exd5 {[%emt 0:00:07]} 5. cxd5 {[%emt 0:00:07]} d6 {[%emt 0:00:05]} 6. Nc3 {[%emt 0:00:19]} g6 {[%emt 0:00:07]} 7. Bf4 {[%emt 0:00:20]} a6 {[%emt 0:00:26]} 8. a4 {[%emt 0:00:09]} Bg7 {[%emt 0:00:08]} 9. h3 {[%emt 0:00:27]} O-O {[%emt 0:00:11]} 10. e3 {[%emt 0:00:03]} Re8 {[%emt 0:00:16]} 11. Nd2 {[%emt 0:00:56]} Nbd7 {[%emt 0:00:33]} 12. Be2 {[%emt 0:01:17]} Ne5 {[%emt 0:00:33]} 13. O-O {[%emt 0:01:33]} Nfd7 {[%emt 0:00:25]} 14. Bg3 {[%emt 0:09:59]} f5 {[%emt 0:02:00]} 15. Re1 {[%emt 0:02:41]} b6 {[%emt 0:05:10]} 16. Qb3 {[%emt 0:08:03]} Rb8 {[%emt 0:16:32]} 17. e4 {[%emt 0:09:57]} Qg5 {[%emt 0:07:10]} 18. exf5 {[%emt 0:16:53]} Qxd2 {[%emt 0:12:09]} 19. Ne4 {[%emt 0:01:35]} Qb4 {[%emt 0:10:03]} 20. Qxb4 {[%emt 0:02:21]} cxb4 {[%emt 0:00:05]} 21. Nxd6 {[%emt 0:00:06]} Rf8 {[%emt 0:04:29]} 22. fxg6 {[%emt 0:00:52]} hxg6 {[%emt 0:06:00]} 23. Rac1 {[%emt 0:05:58]} Nc5 {[%emt 0:05:55]} 24. Nc4 {[%emt 0:05:17]} Nxc4 {[%emt 0:05:44]} 25. Bxc4 {[%emt 0:10:08]} Rb7 {[%emt 0:03:49]} 26. d6+ {[%emt 0:01:28]} Kh8 {[%emt 0:00:50]} 27. Bd5 {[%emt 0:02:29]} Rd7 {[%emt 0:02:07]} 28. Rc4 {[%emt 0:09:53]} g5 {[%emt 0:08:43]} 29. Bc6 {[%emt 0:03:25]} Rdf7 {[%emt 0:02:54]} 30. Re7 {[%emt 0:01:11]} a5 {[%emt 0:01:12]} 31. b3 {[%emt 0:00:47]} Bf6 {[%emt 0:02:02]} 32. Re3 {[%emt 0:00:27]} Bb7 {[%emt 0:00:41]} 33. Be8 {[%emt 0:00:06]} Rg7 {[%emt 0:01:15]} 34. Rxc5 {[%emt 0:04:25]} bxc5 {[%emt 0:00:07]} 35. d7 {[%emt 0:00:01]} Bd8 {[%emt 0:00:31]} 36. Be5 {[%emt 0:01:53]} Kg8 {[%emt 0:00:42]} 37. Rd3 {[%emt 0:00:18]} Re7 {[%emt 0:00:44]} 38. Bd6 {[%emt 0:00:27]} Re1+ {[%emt 0:00:38]} 39. Kh2 {[%emt 0:00:03]} Rxf2 {[%emt 0:00:30]} 40. Rg3 {[%emt 0:01:19]} Ree2 {[%emt 0:00:13]} 0-1

[Event "8th RTU Open 2018"]
[Site "Riga"]
[Date "2018.08.11"]
[Round "8"]
[White "Fenil, Shah"]
[Black "Dhulipalla, Bala Chandra Prasad"]
[Result "0-1"]
[ECO "A06"]
[WhiteElo "2412"]
[BlackElo "2333"]
[Annotator "NA"]
[PlyCount "220"]
[EventDate "2018.08.06"]
[EventType "swiss"]
[EventCountry "LAT"]
[SourceTitle "playchess.com"]
[Source "ChessBase"]
[SourceQuality "1"]
[TimeControl "5400+30"]

1. Nf3 {[%emt 0:00:00]} d5 {[%emt 0:05:28]} 2. g3 {[%emt 0:00:00]} Bg4 {[%emt 0:00:20]} 3. Bg2 {[%emt 0:00:00]} Nd7 {[%emt 0:00:34]} 4. h3 {[%emt 0:00:37]} Bh5 {[%emt 0:01:37]} 5. c4 {[%emt 0:01:37]} e6 {[%emt 0:00:29]} 6. O-O {[%emt 0:01:17]} c6 {[%emt 0:00:55]} 7. cxd5 {[%emt 0:02:53]} exd5 {[%emt 0:01:19]} 8. d4 {[%emt 0:00:29]} Bd6 {[%emt 0:01:56]} 9. Nc3 {[%emt 0:14:20]} Bxf3 {[%emt 0:19:51]} 10. Bxf3 {[%emt 0:01:28]} Ngf6 {[%emt 0:02:19]} 11. Rb1 {[%emt 0:02:42]} a5 {[%emt 0:00:45]} 12. a3 {[%emt 0:05:19]} O-O {[%emt 0:00:39]} 13. b4 {[%emt 0:03:42]} Qe7 {[%emt 0:09:30]} 14. bxa5 {[%emt 0:15:04]} Rfb8 {[%emt 0:02:58]} 15. Bd2 {[%emt 0:08:15]} Bxa3 {[%emt 0:09:17]} 16. Re1 {[%emt 0:07:51]} Bb4 {[%emt 0:11:05]} 17. e4 {[%emt 0:06:41]} dxe4 {[%emt 0:12:09]} 18. Nxe4 {[%emt 0:01:45]} Bxd2 {[%emt 0:00:10]} 19. Nxd2 {[%emt 0:00:43]} Qd8 {[%emt 0:01:14]} 20. Nc4 {[%emt 0:00:42]} Nd5 {[%emt 0:03:11]} 21. Rb3 {[%emt 0:04:18]} b5 {[%emt 0:01:41]} 22. axb6 {[%emt 0:01:39]} N5xb6 {[%emt 0:03:46]} 23. Qc2 {[%emt 0:07:44]} Nd5 {[%emt 0:04:46]} 24. Nd6 {[%emt 0:02:46]} Rxb3 {[%emt 0:00:39]} 25. Qxb3 {[%emt 0:00:01]} N7f6 {[%emt 0:01:09]} 26. Qb7 {[%emt 0:01:30]} Qf8 {[%emt 0:02:30]} 27. Qxc6 {[%emt 0:02:05]} Rd8 {[%emt 0:00:01]} 28. Nf5 {[%emt 0:04:25]} Qb4 {[%emt 0:01:18]} 29. Qc1 {[%emt 0:03:07]} g6 {[%emt 0:00:45]} 30. Bxd5 {[%emt 0:00:51]} Nxd5 {[%emt 0:00:11]} 31. Rf1 {[%emt 0:01:04]} Qb6 {[%emt 0:01:37]} 32. Rd1 {[%emt 0:00:31]} gxf5 {[%emt 0:00:18]} 33. Qg5+ {[%emt 0:00:00]} Kh8 {[%emt 0:00:16]} 34. Qxf5 {[%emt 0:00:01]} Qe6 {[%emt 0:00:32]} 35. Qg5 {[%emt 0:00:29]} Rg8 {[%emt 0:00:14]} 36. Qe5+ {[%emt 0:00:59]} Qxe5 {[%emt 0:01:17]} 37. dxe5 {[%emt 0:00:00]} Rd8 {[%emt 0:00:44]} 38. Rd4 {[%emt 0:00:47]} Rd7 {[%emt 0:00:34]} 39. Kg2 {[%emt 0:01:03]} Nf6 {[%emt 0:00:33]} 40. Rc4 {[%emt 0:00:15]} Nd5 {[%emt 0:00:19]} 41. Rd4 {[%emt 0:00:02]} Nf6 {[%emt 0:00:05]} 42. Rc4 {[%emt 0:00:01]} Ng8 {[%emt 0:00:04]} 43. Rc6 {[%emt 0:00:52]} Ne7 {[%emt 0:00:37]} 44. Ra6 {[%emt 0:00:38]} Rc7 {[%emt 0:00:10]} 45. Ra5 {[%emt 0:01:23]} Kg7 {[%emt 0:00:08]} 46. g4 {[%emt 0:00:31]} Rc4 {[%emt 0:01:45]} 47. f3 {[%emt 0:00:29]} Ng6 {[%emt 0:00:39]} 48. Kg3 Rc3 49. h4 {[%emt 0:01:02]} Re3 {[%emt 0:00:12]} 50. h5 {[%emt 0:00:01]} Rxe5 {[%emt 0:00:13]} 51. Ra6 {[%emt 0:00:04]} Nf8 {[%emt 0:00:29]} 52. h6+ {[%emt 0:01:18]} Kg8 {[%emt 0:00:01]} 53. Ra8 {[%emt 0:00:11]} Rd5 {[%emt 0:01:04]} 54. Rb8 {[%emt 0:00:43]} f6 {[%emt 0:00:31]} 55. f4 {[%emt 0:00:20]} Kf7 {[%emt 0:00:10]} 56. f5 {[%emt 0:00:23]} Nd7 {[%emt 0:00:52]} 57. Ra8 {[%emt 0:00:31]} Rd3+ {[%emt 0:00:26]} 58. Kh4 {[%emt 0:00:33]} Rd1 {[%emt 0:00:35]} 59. Rd8 {[%emt 0:00:50]} Rd2 {[%emt 0:01:10]} 60. g5 {[%emt 0:00:30]} fxg5+ {[%emt 0:00:29]} 61. Kxg5 {[%emt 0:00:01]} Rg2+ {[%emt 0:00:18]} 62. Kf4 {[%emt 0:00:24]} Nf6 {[%emt 0:00:39]} 63. Ra8 {[%emt 0:01:10]} Rf2+ {[%emt 0:00:27]} 64. Kg5 {[%emt 0:00:29]} Rg2+ {[%emt 0:01:07]} 65. Kf4 {[%emt 0:00:01]} Rf2+ {[%emt 0:00:01]} 66. Kg5 {[%emt 0:00:00]} Ng8 {[%emt 0:01:05]} 67. Ra6 {[%emt 0:01:17]} Rg2+ {[%emt 0:00:15]} 68. Kf4 {[%emt 0:00:01]} Rg1 {[%emt 0:00:51]} 69. Rd6 {[%emt 0:01:10]} Ne7 {[%emt 0:00:14]} 70. Rd7 {[%emt 0:00:31]} Rf1+ {[%emt 0:00:28]} 71. Kg4 {[%emt 0:00:13]} Rg1+ {[%emt 0:00:23]} 72. Kf4 {[%emt 0:00:02]} Ra1 {[%emt 0:00:35]} 73. Rb7 {[%emt 0:00:49]} Ra6 {[%emt 0:00:30]} 74. Kg5 {[%emt 0:00:19]} Rd6 {[%emt 0:00:11]} 75. Ra7 {[%emt 0:00:43]} Rf6 {[%emt 0:01:02]} 76. Ra5 {[%emt 0:00:03]} Rc6 {[%emt 0:00:15]} 77. Ra7 {[%emt 0:00:06]} Rc5 {[%emt 0:00:07]} 78. Kg4 {[%emt 0:00:21]} Kf6 {[%emt 0:00:01]} 79. Ra6+ {[%emt 0:01:54]} Rc6 {[%emt 0:00:05]} 80. Ra8 {[%emt 0:00:31]} Kf7 {[%emt 0:00:57]} 81. Kg5 {[%emt 0:00:30]} Rc5 {[%emt 0:00:16]} 82. Kg4 {[%emt 0:00:30]} Rxf5 {[%emt 0:00:09]} 83. Ra7 {[%emt 0:00:08]} Re5 {[%emt 0:00:18]} 84. Kf4 {[%emt 0:00:10]} Kf6 {[%emt 0:00:01]} 85. Ra8 {[%emt 0:00:44]} Rf5+ {[%emt 0:00:17]} 86. Kg4 {[%emt 0:00:06]} Rg5+ {[%emt 0:00:06]} 87. Kf4 {[%emt 0:00:34]} Ng6+ {[%emt 0:00:34]} 88. Ke4 {[%emt 0:00:39]} Rh5 {[%emt 0:00:02]} 89. Kf3 {[%emt 0:00:29]} Rxh6 {[%emt 0:00:28]} 90. Ra6+ {[%emt 0:00:03]} Kf5 {[%emt 0:00:06]} 91. Kg3 {[%emt 0:00:15]} Rh1 {[%emt 0:00:15]} 92. Ra5+ {[%emt 0:00:15]} Ne5 {[%emt 0:00:08]} 93. Ra8 {[%emt 0:00:08]} Rd1 {[%emt 0:00:29]} 94. Rf8+ {[%emt 0:00:10]} Kg5 {[%emt 0:00:09]} 95. Rg8+ {[%emt 0:00:18]} Ng6 {[%emt 0:00:06]} 96. Ra8 {[%emt 0:00:02]} Rd3+ {[%emt 0:00:07]} 97. Kf2 {[%emt 0:00:04]} h5 {[%emt 0:00:06]} 98. Ra4 {[%emt 0:00:13]} h4 {[%emt 0:00:07]} 99. Rb4 {[%emt 0:00:08]} Nf4 {[%emt 0:00:07]} 100. Rb8 {[%emt 0:00:03]} Nh3+ {[%emt 0:00:52]} 101. Kg2 {[%emt 0:00:03]} Kg4 {[%emt 0:00:08]} 102. Kh2 {[%emt 0:00:16]} Rd2+ {[%emt 0:00:28]} 103. Kh1 {[%emt 0:00:01]} Ng5 {[%emt 0:00:17]} 104. Rb1 {[%emt 0:00:52]} h3 {[%emt 0:00:40]} 105. Rg1+ {[%emt 0:00:09]} Kh4 {[%emt 0:00:01]} 106. Rf1 {[%emt 0:00:16]} Kg3 {[%emt 0:00:45]} 107. Rg1+ {[%emt 0:00:54]} Rg2 {[%emt 0:00:12]} 108. Rf1 {[%emt 0:00:10]} Rh2+ {[%emt 0:00:04]} 109. Kg1 {[%emt 0:00:02]} Re2 {[%emt 0:00:18]} 110. Kh1 {[%emt 0:00:18]} Nf3 {[%emt 0:00:22]} 0-1

[Event "8th RTU Open 2018"]
[Site "Riga"]
[Date "2018.08.11"]
[Round "8"]
[White "Gokerkan, Cem Kaan"]
[Black "Manafov, Vugar Gulam"]
[Result "1-0"]
[ECO "B03"]
[WhiteElo "2404"]
[BlackElo "2215"]
[Annotator "NA"]
[PlyCount "45"]
[EventDate "2018.08.06"]
[EventType "swiss"]
[EventCountry "LAT"]
[SourceTitle "playchess.com"]
[Source "ChessBase"]
[SourceQuality "1"]
[TimeControl "5400+30"]

1. e4 {[%emt 0:00:00]} Nf6 {[%emt 0:00:00]} 2. e5 {[%emt 0:00:02]} Nd5 {[%emt 0:00:00]} 3. d4 {[%emt 0:00:09]} d6 {[%emt 0:00:00]} 4. c4 {[%emt 0:00:07]} Nb6 {[%emt 0:00:00]} 5. exd6 {[%emt 0:00:21]} cxd6 {[%emt 0:00:00]} 6. Nc3 {[%emt 0:00:12]} g6 {[%emt 0:00:00]} 7. Be3 {[%emt 0:01:11]} Bg7 {[%emt 0:00:03]} 8. Rc1 {[%emt 0:00:27]} O-O {[%emt 0:00:08]} 9. b3 {[%emt 0:00:53]} Bf5 {[%emt 0:00:06]} 10. h3 {[%emt 0:01:44]} d5 {[%emt 0:00:14]} 11. c5 {[%emt 0:00:28]} Nc8 {[%emt 0:00:20]} 12. Nge2 {[%emt 0:00:54]} Nc6 {[%emt 0:03:10]} 13. g4 {[%emt 0:03:25]} Be4 {[%emt 0:01:01]} 14. Nxe4 {[%emt 0:00:45]} dxe4 {[%emt 0:00:03]} 15. Bg2 {[%emt 0:11:54]} f5 {[%emt 0:05:39]} 16. gxf5 {[%emt 0:07:38]} gxf5 {[%emt 0:00:08]} 17. d5 {[%emt 0:22:04]} Nb4 {[%emt 0:04:23]} 18. Nf4 {[%emt 0:01:50]} Be5 {[%emt 0:04:03]} 19. Rg1 {[%emt 0:06:42]} Bxf4 {[%emt 0:08:15]} 20. Bf1+ {[%emt 0:05:10]} Kh8 {[%emt 0:00:11]} 21. Bxf4 {[%emt 0:01:52]} Qxd5 {[%emt 0:01:55]} 22. Bc4 {[%emt 0:01:29]} Nd3+ {[%emt 0:05:02]} 23. Qxd3 {[%emt 0:00:32]} 1-0

[Event "8th RTU Open 2018"]
[Site "Riga"]
[Date "2018.08.11"]
[Round "8"]
[White "Lagunow, Raphael"]
[Black "Sergienko, Sergey"]
[Result "1-0"]
[ECO "B28"]
[WhiteElo "2404"]
[BlackElo "2327"]
[Annotator "NA"]
[PlyCount "123"]
[EventDate "2018.08.06"]
[EventType "swiss"]
[EventCountry "LAT"]
[SourceTitle "playchess.com"]
[Source "ChessBase"]
[SourceQuality "1"]
[TimeControl "5400+30"]

1. e4 {[%emt 0:00:00]} c5 {[%emt 0:00:00]} 2. Nf3 {[%emt 0:00:02]} a6 3. c3 {[%emt 0:03:30]} d6 {[%emt 0:00:17]} 4. d4 {[%emt 0:00:19]} Qc7 {[%emt 0:00:18]} 5. h3 {[%emt 0:02:30]} g6 {[%emt 0:01:25]} 6. Bd3 {[%emt 0:07:06]} Bg7 {[%emt 0:03:59]} 7. O-O {[%emt 0:01:00]} Nd7 {[%emt 0:09:01]} 8. Re1 {[%emt 0:11:17]} e5 {[%emt 0:01:09]} 9. dxe5 {[%emt 0:00:30]} Nxe5 {[%emt 0:02:21]} 10. Bf4 {[%emt 0:07:24]} Ne7 {[%emt 0:00:57]} 11. a4 {[%emt 0:00:48]} O-O {[%emt 0:03:12]} 12. Na3 {[%emt 0:12:04]} Be6 {[%emt 0:01:58]} 13. Bxe5 {[%emt 0:00:07]} dxe5 {[%emt 0:02:40]} 14. Bc4 {[%emt 0:01:03]} Rad8 {[%emt 0:05:17]} 15. Qb3 {[%emt 0:01:28]} Bc8 {[%emt 0:02:04]} 16. Rad1 {[%emt 0:00:57]} Nc6 {[%emt 0:03:05]} 17. Bd5 {[%emt 0:02:13]} Bf6 {[%emt 0:23:11]} 18. Nc4 {[%emt 0:00:30]} Rfe8 {[%emt 0:00:58]} 19. Bxc6 {[%emt 0:17:00]} bxc6 {[%emt 0:03:10]} 20. Qa3 {[%emt 0:02:27]} Qe7 {[%emt 0:15:33]} 21. Na5 {[%emt 0:00:26]} Rxd1 {[%emt 0:00:26]} 22. Rxd1 Rd8 {[%emt 0:00:01]} 23. Rxd8+ {[%emt 0:03:57]} Qxd8 24. Qxc5 {[%emt 0:01:23]} Qd1+ {[%emt 0:01:50]} 25. Kh2 {[%emt 0:12:51]} Qc1 26. Qe3 {[%emt 0:00:04]} Qxb2 {[%emt 0:02:17]} 27. Nxc6 {[%emt 0:00:23]} Qa3 28. a5 {[%emt 0:00:30]} Qd6 {[%emt 0:03:09]} 29. Qb6 Kg7 30. c4 {[%emt 0:02:15]} Qd3 {[%emt 0:02:53]} 31. Nfxe5 {[%emt 0:04:41]} Qxe4 {[%emt 0:00:33]} 32. Qe3 {[%emt 0:00:05]} Qxe3 {[%emt 0:03:35]} 33. fxe3 {[%emt 0:00:01]} Bg5 {[%emt 0:00:07]} 34. e4 {[%emt 0:01:52]} Kf6 {[%emt 0:02:14]} 35. Nd3 {[%emt 0:00:35]} Ke6 {[%emt 0:02:28]} 36. e5 {[%emt 0:00:20]} Be3 {[%emt 0:02:17]} 37. Kg3 {[%emt 0:01:00]} Kd7 {[%emt 0:00:17]} 38. Ncb4 {[%emt 0:00:28]} Bb7 {[%emt 0:02:24]} 39. Nd5 {[%emt 0:01:20]} Bd2 {[%emt 0:00:58]} 40. Nc5+ {[%emt 0:00:07]} Kc6 {[%emt 0:00:59]} 41. Nb3 {[%emt 0:00:01]} Bg5 {[%emt 0:01:12]} 42. Kf3 {[%emt 0:00:55]} Bd8 {[%emt 0:00:11]} 43. Ke4 {[%emt 0:00:42]} Bc8 {[%emt 0:00:21]} 44. Kd4 {[%emt 0:01:20]} h5 {[%emt 0:00:42]} 45. Nb4+ {[%emt 0:00:12]} Kd7 {[%emt 0:00:29]} 46. c5 {[%emt 0:02:23]} f6 {[%emt 0:01:16]} 47. c6+ {[%emt 0:01:04]} Ke8 {[%emt 0:00:06]} 48. Nd5 {[%emt 0:00:37]} fxe5+ {[%emt 0:00:27]} 49. Kxe5 {[%emt 0:00:23]} Bh4 {[%emt 0:00:26]} 50. Nb6 {[%emt 0:01:48]} Bf5 {[%emt 0:00:23]} 51. Nd4 {[%emt 0:00:49]} Bg3+ {[%emt 0:00:42]} 52. Kd5 {[%emt 0:00:30]} Bb1 {[%emt 0:00:45]} 53. Ne6 {[%emt 0:00:25]} Ba2+ {[%emt 0:00:23]} 54. Nc4 {[%emt 0:00:01]} Be1 {[%emt 0:00:15]} 55. Nc7+ {[%emt 0:00:32]} Kd8 {[%emt 0:00:07]} 56. Nxa6 {[%emt 0:00:03]} Bxa5 {[%emt 0:00:44]} 57. Kc5 {[%emt 0:00:09]} Bc7 {[%emt 0:00:33]} 58. Nxc7 {[%emt 0:01:34]} Kxc7 {[%emt 0:00:02]} 59. Nd6 {[%emt 0:00:05]} Be6 {[%emt 0:00:55]} 60. Nb5+ {[%emt 0:00:14]} Kc8 {[%emt 0:01:18]} 61. Kd6 {[%emt 0:01:05]} Bf5 {[%emt 0:00:14]} 62. Nc3 {[%emt 0:00:34]} 1-0

[Event "8th RTU Open 2018"]
[Site "Riga"]
[Date "2018.08.11"]
[Round "8"]
[White "Lapshun, Yury"]
[Black "Vaishali R"]
[Result "0-1"]
[ECO "A20"]
[WhiteElo "2403"]
[BlackElo "2294"]
[Annotator "NA"]
[PlyCount "150"]
[EventDate "2018.08.06"]
[EventType "swiss"]
[EventCountry "LAT"]
[SourceTitle "playchess.com"]
[Source "ChessBase"]
[SourceQuality "1"]
[TimeControl "5400+30"]

1. c4 {[%emt 0:13:53]} e5 {[%emt 0:00:00]} 2. g3 {[%emt 0:00:15]} Nf6 {[%emt 0:00:00]} 3. Bg2 {[%emt 0:00:03]} c6 {[%emt 0:00:00]} 4. Nf3 {[%emt 0:00:36]} e4 {[%emt 0:00:02]} 5. Nd4 {[%emt 0:00:04]} Qb6 {[%emt 0:00:05]} 6. e3 {[%emt 0:00:32]} d5 {[%emt 0:00:24]} 7. d3 {[%emt 0:03:15]} Bg4 {[%emt 0:03:47]} 8. Qc2 {[%emt 0:00:06]} Na6 {[%emt 0:01:55]} 9. dxe4 {[%emt 0:04:02]} Nb4 {[%emt 0:01:38]} 10. Qb3 {[%emt 0:00:03]} dxe4 {[%emt 0:03:04]} 11. Nc3 {[%emt 0:05:48]} c5 {[%emt 0:13:50]} 12. Nc2 {[%emt 0:07:44]} Nd3+ {[%emt 0:01:38]} 13. Kf1 {[%emt 0:00:09]} Bf3 {[%emt 0:14:02]} 14. Bxf3 {[%emt 0:15:02]} exf3 {[%emt 0:00:07]} 15. Nd5 {[%emt 0:02:22]} Nxd5 {[%emt 0:09:03]} 16. Qxd3 {[%emt 0:00:49]} Nf6 {[%emt 0:00:06]} 17. Qf5 {[%emt 0:01:02]} Qe6 {[%emt 0:06:14]} 18. Qxe6+ {[%emt 0:00:17]} fxe6 {[%emt 0:00:02]} 19. Ne1 {[%emt 0:00:27]} e5 {[%emt 0:01:30]} 20. Nxf3 {[%emt 0:00:06]} e4 {[%emt 0:00:04]} 21. Nd2 {[%emt 0:04:09]} O-O-O {[%emt 0:07:00]} 22. Ke2 {[%emt 0:00:43]} Bd6 {[%emt 0:02:11]} 23. Rb1 {[%emt 0:02:36]} Rd7 {[%emt 0:03:35]} 24. Rd1 {[%emt 0:01:37]} Be5 {[%emt 0:02:14]} 25. f4 {[%emt 0:03:29]} exf3+ {[%emt 0:03:29]} 26. Nxf3 {[%emt 0:01:17]} Re7 {[%emt 0:00:20]} 27. b4 {[%emt 0:03:14]} cxb4 {[%emt 0:01:00]} 28. Rxb4 {[%emt 0:04:57]} Rhe8 {[%emt 0:00:14]} 29. Rd3 {[%emt 0:00:26]} Ne4 {[%emt 0:05:53]} 30. Bb2 {[%emt 0:05:29]} Bxb2 {[%emt 0:14:25]} 31. Rxb2 {[%emt 0:00:06]} Nc5 {[%emt 0:00:03]} 32. Ra3 {[%emt 0:00:11]} Re4 {[%emt 0:00:40]} 33. Rc2 {[%emt 0:00:47]} a6 {[%emt 0:00:22]} 34. Rc1 {[%emt 0:00:49]} h6 {[%emt 0:00:41]} 35. Nd2 {[%emt 0:01:29]} R4e6 {[%emt 0:00:21]} 36. Rd1 {[%emt 0:00:40]} Rb6 {[%emt 0:03:04]} 37. Ra5 {[%emt 0:03:37]} Rc6 {[%emt 0:00:19]} 38. Nf3 {[%emt 0:03:05]} Ne4 {[%emt 0:01:24]} 39. Rc1 {[%emt 0:03:14]} Rf6 {[%emt 0:02:29]} 40. Re5 {[%emt 0:08:36]} Rxe5 {[%emt 0:00:21]} 41. Nxe5 {[%emt 0:00:02]} Rf2+ {[%emt 0:00:09]} 42. Kd3 {[%emt 0:00:04]} Nc5+ {[%emt 0:00:07]} 43. Kd4 {[%emt 0:00:09]} b6 {[%emt 0:00:19]} 44. Rb1 {[%emt 0:02:28]} Rd2+ {[%emt 0:01:11]} 45. Kc3 {[%emt 0:00:02]} Ne4+ {[%emt 0:00:32]} 46. Kb4 {[%emt 0:00:46]} Rxh2 {[%emt 0:01:22]} 47. Rf1 {[%emt 0:01:09]} Kc7 {[%emt 0:00:57]} 48. a4 {[%emt 0:01:11]} Rb2+ {[%emt 0:00:37]} 49. Ka3 {[%emt 0:00:03]} Re2 {[%emt 0:00:09]} 50. Rf7+ {[%emt 0:01:10]} Kd6 {[%emt 0:00:02]} 51. Nd7 {[%emt 0:00:37]} Rxe3+ {[%emt 0:00:24]} 52. Kb4 {[%emt 0:00:20]} Nc5 {[%emt 0:02:01]} 53. Nxb6 {[%emt 0:00:23]} Rxg3 {[%emt 0:00:30]} 54. Nc8+ {[%emt 0:00:01]} Ke6 {[%emt 0:00:26]} 55. Re7+ {[%emt 0:00:08]} Kf6 {[%emt 0:00:05]} 56. Kxc5 {[%emt 0:00:06]} h5 {[%emt 0:00:22]} 57. Re8 {[%emt 0:00:36]} h4 {[%emt 0:00:18]} 58. Nd6 {[%emt 0:00:07]} Rg1 {[%emt 0:00:36]} 59. Kb6 {[%emt 0:01:58]} g5 {[%emt 0:00:45]} 60. Rh8 {[%emt 0:00:32]} Kg7 {[%emt 0:00:13]} 61. Re8 {[%emt 0:00:27]} h3 {[%emt 0:00:16]} 62. Re2 {[%emt 0:00:11]} g4 {[%emt 0:01:07]} 63. c5 {[%emt 0:00:28]} Rg2 {[%emt 0:00:49]} 64. Re1 {[%emt 0:00:50]} h2 {[%emt 0:00:07]} 65. Rh1 {[%emt 0:00:09]} Kg6 {[%emt 0:00:36]} 66. c6 {[%emt 0:00:27]} g3 {[%emt 0:00:30]} 67. Ne4 {[%emt 0:01:04]} Rb2+ {[%emt 0:00:08]} 68. Kxa6 {[%emt 0:00:24]} g2 {[%emt 0:00:06]} 69. Rxh2 {[%emt 0:00:02]} Rb6+ {[%emt 0:00:16]} 70. Kxb6 {[%emt 0:00:36]} g1=Q+ {[%emt 0:00:03]} 71. Nc5 {[%emt 0:01:01]} Qxh2 {[%emt 0:00:04]} 72. c7 {[%emt 0:00:09]} Qd6+ {[%emt 0:00:35]} 73. Kb7 {[%emt 0:00:05]} Qxc5 {[%emt 0:00:31]} 74. c8=Q {[%emt 0:00:06]} Qb4+ {[%emt 0:00:01]} 75. Ka7 {[%emt 0:00:11]} Qxa4+ {[%emt 0:00:04]} 0-1

[Event "8th RTU Open 2018"]
[Site "Riga"]
[Date "2018.08.11"]
[Round "8"]
[White "Pershin, Denis"]
[Black "Pogan, Nikolas"]
[Result "1-0"]
[ECO "A45"]
[WhiteElo "2403"]
[BlackElo "2255"]
[Annotator "NA"]
[PlyCount "147"]
[EventDate "2018.08.06"]
[EventType "swiss"]
[EventCountry "LAT"]
[SourceTitle "playchess.com"]
[Source "ChessBase"]
[SourceQuality "1"]
[TimeControl "5400+30"]

1. d4 {[%emt 0:00:00]} Nf6 {[%emt 0:08:52]} 2. Nc3 {[%emt 0:00:52]} d5 {[%emt 0:01:21]} 3. Bf4 {[%emt 0:00:06]} c6 {[%emt 0:00:10]} 4. e3 {[%emt 0:00:27]} Bf5 {[%emt 0:00:10]} 5. f3 {[%emt 0:00:14]} Nbd7 {[%emt 0:00:58]} 6. g4 {[%emt 0:00:07]} Bg6 {[%emt 0:00:05]} 7. h4 {[%emt 0:00:04]} h5 {[%emt 0:00:20]} 8. g5 {[%emt 0:00:05]} Ng8 {[%emt 0:00:04]} 9. Bd3 {[%emt 0:00:10]} Bxd3 {[%emt 0:00:21]} 10. Qxd3 {[%emt 0:00:06]} g6 {[%emt 0:00:26]} 11. e4 {[%emt 0:00:50]} e6 {[%emt 0:00:05]} 12. O-O-O {[%emt 0:02:48]} Ne7 {[%emt 0:01:30]} 13. Bd6 {[%emt 0:04:02]} Nc8 {[%emt 0:18:36]} 14. Bxf8 {[%emt 0:01:32]} Kxf8 {[%emt 0:00:26]} 15. f4 {[%emt 0:00:05]} Nd6 {[%emt 0:04:48]} 16. Nf3 {[%emt 0:04:47]} Qa5 {[%emt 0:04:45]} 17. Kb1 {[%emt 0:04:34]} Nb6 {[%emt 0:03:46]} 18. Ne5 {[%emt 0:00:20]} Rd8 {[%emt 0:10:24]} 19. Rhf1 {[%emt 0:06:43]} dxe4 {[%emt 0:13:15]} 20. Nxe4 {[%emt 0:00:05]} Nxe4 {[%emt 0:00:03]} 21. Qxe4 {[%emt 0:00:06]} Nc8 {[%emt 0:00:40]} 22. Nc4 {[%emt 0:08:57]} Qd5 {[%emt 0:01:08]} 23. Qe5 {[%emt 0:01:37]} Qxe5 {[%emt 0:00:48]} 24. fxe5 {[%emt 0:01:20]} Kg7 {[%emt 0:01:01]} 25. Rf4 {[%emt 0:01:48]} Rhf8 {[%emt 0:00:08]} 26. Rdf1 {[%emt 0:01:31]} Rd7 {[%emt 0:01:31]} 27. c3 {[%emt 0:03:52]} b5 {[%emt 0:01:29]} 28. Na5 {[%emt 0:00:36]} Ne7 {[%emt 0:00:06]} 29. Nb3 {[%emt 0:00:33]} Nf5 {[%emt 0:00:25]} 30. Nc5 {[%emt 0:02:41]} Rd5 {[%emt 0:00:02]} 31. b4 {[%emt 0:00:24]} Ra8 {[%emt 0:03:37]} 32. Nb7 {[%emt 0:01:29]} Rd7 {[%emt 0:00:17]} 33. Na5 {[%emt 0:00:10]} Rc8 {[%emt 0:00:39]} 34. R1f3 {[%emt 0:00:11]} Kf8 {[%emt 0:01:03]} 35. Kb2 {[%emt 0:00:19]} a6 {[%emt 0:02:19]} 36. Nb3 {[%emt 0:00:59]} Kg7 {[%emt 0:00:34]} 37. a4 {[%emt 0:00:59]} Ra7 {[%emt 0:02:25]} 38. Kc2 {[%emt 0:01:37]} Rcc7 {[%emt 0:01:08]} 39. Kd2 {[%emt 0:00:40]} Kf8 {[%emt 0:01:41]} 40. Ke2 {[%emt 0:00:49]} Ke8 {[%emt 0:00:01]} 41. Kf2 {[%emt 0:05:03]} Ra8 {[%emt 0:00:34]} 42. Kg1 {[%emt 0:01:23]} Raa7 {[%emt 0:00:01]} 43. Kh2 {[%emt 0:00:11]} Ra8 {[%emt 0:00:35]} 44. Kh3 {[%emt 0:00:07]} Raa7 {[%emt 0:00:02]} 45. Rf1 {[%emt 0:01:26]} Ne3 {[%emt 0:00:56]} 46. Ra1 {[%emt 0:00:13]} Nd5 {[%emt 0:11:49]} 47. Rf3 {[%emt 0:00:37]} Nb6 {[%emt 0:00:03]} 48. Nc5 {[%emt 0:00:42]} Nxa4 {[%emt 0:03:22]} 49. Nxa4 {[%emt 0:00:06]} bxa4 {[%emt 0:00:02]} 50. Rxa4 {[%emt 0:00:04]} Kd8 {[%emt 0:01:51]} 51. Kg3 {[%emt 0:01:49]} Kc8 {[%emt 0:00:02]} 52. Kf4 {[%emt 0:00:15]} Kb7 {[%emt 0:00:09]} 53. Ke4 {[%emt 0:00:52]} Rd7 {[%emt 0:02:40]} 54. Kd3 {[%emt 0:03:30]} Kb6 {[%emt 0:00:19]} 55. Kc4 {[%emt 0:00:09]} Rd5 {[%emt 0:01:03]} 56. Rf1 {[%emt 0:00:17]} Rdd7 {[%emt 0:00:11]} 57. Ra5 {[%emt 0:00:59]} Rd8 {[%emt 0:01:31]} 58. Rfa1 {[%emt 0:00:07]} Rdd7 {[%emt 0:00:05]} 59. Kd3 {[%emt 0:00:31]} Kb7 {[%emt 0:00:15]} 60. Ke4 {[%emt 0:00:26]} Ra8 {[%emt 0:00:15]} 61. Ke3 {[%emt 0:00:08]} Rd5 {[%emt 0:01:00]} 62. c4 {[%emt 0:03:08]} Rxa5 {[%emt 0:00:57]} 63. bxa5 {[%emt 0:00:04]} Kc7 {[%emt 0:01:13]} 64. Rf1 {[%emt 0:00:09]} Rf8 {[%emt 0:00:16]} 65. Kd3 {[%emt 0:00:05]} Kd7 {[%emt 0:00:20]} 66. Rb1 {[%emt 0:00:09]} Kc7 {[%emt 0:00:08]} 67. Kc3 {[%emt 0:00:44]} Rd8 {[%emt 0:01:38]} 68. Rb6 {[%emt 0:01:12]} c5 {[%emt 0:00:30]} 69. dxc5 {[%emt 0:00:18]} Rd1 {[%emt 0:00:34]} 70. Rxa6 {[%emt 0:00:06]} Rf1 {[%emt 0:00:29]} 71. Ra7+ {[%emt 0:00:54]} Kc6 {[%emt 0:00:03]} 72. a6 {[%emt 0:00:08]} Kxc5 {[%emt 0:00:39]} 73. Rc7+ {[%emt 0:00:06]} Kb6 {[%emt 0:00:03]} 74. a7 {[%emt 0:00:09]} 1-0